fUSD/lending_fUSD_20240212
["ID","MTS","AMOUNT","RATE_DAILY","PERIOD"]
[313836207,1707748302162,-1147.71,0.00026958,2]
[313836208,1707748302171,-500.0,0.00026958,2]
[313836209,1707748302180,-500.0,0.00026958,2]
[313836210,1707748302189,-2142.38,0.00026958,2]
[313836211,1707748302199,-1578.9,0.00026958,2]
[313836212,1707748302208,-213.75108226,0.00026958,2]
[313836213,1707748302217,-1527.65,0.00026958,2]
[313836214,1707748302227,-628.61,0.00026958,2]
[313836215,1707748302237,-1715.49,0.00026958,2]
[313836216,1707748302246,-1537.51,0.00026958,2]
[313836217,1707748302255,-1757.6,0.00026958,2]
[313836218,1707748302266,-2089.11,0.00026958,2]
[313836219,1707748302275,-1017.68,0.00026958,2]
[313836220,1707748302285,-1161.37,0.00026958,2]
[313836221,1707748302295,-590.03,0.00026958,2]
[313836222,1707748302305,-10286.15,0.00026958,2]
[313836223,1707748302317,-1897.21,0.00026958,2]
[313836224,1707748302327,-935.54,0.00026958,2]
[313836225,1707748302337,-7934.79,0.00026958,2]
[313836226,1707748302347,-608.12130993,0.00026958,2]
[313836227,1707748302358,-2190.55,0.00026958,2]
[313836228,1707748302368,-500.0,0.00026958,2]
[313836229,1707748302378,-1376.25,0.00026958,2]
[313836230,1707748302389,-6405.5,0.00026958,2]
[313836231,1707748302398,-302.35,0.00026958,2]
[313836232,1707748302408,-4161.56,0.00026958,2]
[313836233,1707748302418,-692.19,0.00026958,2]
[313836234,1707748302428,-2432.6009673,0.00027,2]
[313836235,1707748302439,-800.0,0.00027,3]
[313836236,1707748302449,-200.0,0.00027,2]
[313836237,1707748302459,-418.5019054,0.00027,2]
[313836238,1707748302469,-1262.54,0.00027039,2]
[313836239,1707748302479,-1207.47,0.00027039,2]
[313836240,1707748302489,-406.59177278,0.00027039,2]
[313836241,1707748302498,-581.28,0.00027039,2]
[313836242,1707748302508,-500.0,0.00027039,2]
[313836243,1707748302518,-500.0,0.00027039,2]
[313836244,1707748302528,-500.0,0.00027039,2]
[313836245,1707748302538,-500.0,0.00027039,2]
[313836246,1707748302549,-662.95,0.00027039,2]
[313836247,1707748302559,-500.0,0.00027039,2]
[313836248,1707748302569,-500.0,0.00027039,2]
[313836249,1707748302579,-500.0,0.00027039,2]
[313836250,1707748302589,-500.0,0.00027039,2]
[313836251,1707748302599,-785.31,0.00027039,2]
[313836252,1707748302608,-500.0,0.00027039,2]
[313836253,1707748302618,-500.0,0.00027039,2]
[313836254,1707748302627,-1057.6,0.00027039,2]
[313836255,1707748302638,-623.82,0.00027039,2]
[313836256,1707748302647,-681.61,0.00027039,2]
[313836257,1707748302657,-1004.0,0.00027039,2]
[313836258,1707748302667,-500.0,0.00027045,2]
[313836259,1707748302678,-3394.81,0.00027123,2]
[313836260,1707748302688,-500.0,0.0002713,2]
[313836261,1707748302698,-1366.1,0.0002713,2]
[313836262,1707748302708,-2110.37,0.00027146,2]
[313836263,1707748302718,-6142.49,0.00027146,2]
[313836264,1707748302729,-500.0,0.00027146,2]
[313836265,1707748302740,-676.37,0.00027146,2]
[313836266,1707748302749,-1791.31,0.00027146,2]
[313836267,1707748302759,-564.38,0.00027146,2]
[313836268,1707748302768,-2125.32,0.00027146,2]
[313836269,1707748302778,-500.0,0.00027146,2]
[313836270,1707748302789,-746.12,0.00027146,2]
[313836271,1707748302800,-6506.4,0.00027146,2]
[313836272,1707748302810,-746.22,0.00027146,2]
[313836273,1707748302819,-500.0,0.00027146,2]
[313836274,1707748302828,-500.0,0.00027146,2]
[313836275,1707748302837,-500.0,0.00027146,2]
[313836276,1707748302846,-1926.94,0.00027146,2]
[313836277,1707748302856,-1829.63,0.00027146,2]
[313836278,1707748302866,-504.23,0.00027146,2]
[313836279,1707748302875,-2230.81,0.00027146,2]
[313836280,1707748302885,-500.0,0.00027146,2]
[313836281,1707748302894,-500.0,0.00027146,2]
[313836282,1707748302904,-5597.11,0.00027146,2]
[313836283,1707748302914,-2899.6,0.00027146,2]
[313836284,1707748302924,-500.0,0.00027146,2]
[313836285,1707748302933,-828.89,0.00027146,2]
[313836286,1707748302943,-1000.0,0.00027151,2]
[313836287,1707748302953,-150.0,0.00027193,2]
[313836288,1707748302962,-202.0,0.00027193,2]
[313836289,1707748302972,-2611.65,0.00027228,2]
[313836290,1707748302982,-1871.51,0.00027228,2]
[313836291,1707748302992,-15228.44,0.00027228,2]
[313836292,1707748303002,-1123.04,0.00027228,2]
[313836293,1707748303011,-500.0,0.00027228,2]
[313836294,1707748303021,-669.38,0.00027228,2]
[313836295,1707748303031,-7454.03,0.00027228,2]
[313836296,1707748303041,-656.99,0.00027228,2]
[313836297,1707748303051,-1132.61,0.00027228,2]
[313836298,1707748303061,-607.87,0.00027228,2]
[313836299,1707748303070,-2975.67,0.00027228,2]
[313836300,1707748303080,-1380.57,0.00027228,2]
[313836301,1707748303090,-1785.04,0.00027228,2]
[313836302,1707748303100,-1602.71,0.00027228,2]
[313836303,1707748303110,-1140.13,0.00027228,2]
[313836304,1707748303120,-2106.31,0.00027228,2]
[313836305,1707748303130,-1276.82,0.00027228,2]
[313836306,1707748303141,-11488.97,0.00027228,2]
[313836307,1707748303150,-779.37,0.00027228,2]
[313836308,1707748303161,-522.1,0.00027228,2]
[313836309,1707748303171,-500.0,0.00027228,2]
[313836310,1707748303181,-862.25,0.00027228,2]
[313836311,1707748303191,-954.69,0.00027228,2]
[313836312,1707748303201,-4038.41,0.00027228,2]
[313836313,1707748303211,-2125.47,0.00027228,2]
[313836314,1707748303220,-3098.18,0.00027228,2]
[313836315,1707748303230,-4848.26,0.00027228,2]
[313836316,1707748303239,-1169.49,0.00027228,2]
[313836317,1707748303248,-2525.28,0.00027228,2]
[313836318,1707748303258,-150.0,0.00027229,2]
[313836319,1707748303267,-207.68693404,0.0002723,2]
[313836320,1707748303276,-660.1,0.0002723,2]
[313836321,1707748303287,-676.33,0.0002723,2]
[313836322,1707748303296,-500.0,0.0002723,2]
[313836323,1707748303305,-500.0,0.0002723,2]
[313836324,1707748303317,-500.0,0.0002723,2]
[313836325,1707748303326,-500.0,0.0002723,2]
[313836326,1707748303336,-500.0,0.0002723,2]
[313836327,1707748303346,-526.84,0.0002723,2]
[313836328,1707748303356,-500.0,0.0002723,2]
[313836329,1707748303365,-529.5,0.0002723,2]
[313836330,1707748303374,-475.8625776,0.0002723,2]
[313836331,1707748303385,-652.95,0.0002723,2]
[313836332,1707748303396,-651.67,0.0002723,2]
[313836333,1707748303406,-567.71,0.0002723,2]
[313836334,1707748303415,-500.0,0.0002723,2]
[313836335,1707748303425,-784.11,0.0002723,2]
[313836336,1707748303435,-524.91,0.0002723,2]
[313836337,1707748303444,-872.77,0.0002723,2]
[313836338,1707748303454,-639.25,0.0002723,2]
[313836339,1707748303464,-500.0,0.0002723,2]
[313836340,1707748303475,-1296.69,0.0002723,2]
[313836341,1707748303485,-500.0,0.0002723,2]
[313836342,1707748303495,-517.62,0.0002723,2]
[313836343,1707748303504,-4333.7,0.0002723,2]
[313836344,1707748303514,-1895.9,0.0002723,2]
[313836345,1707748303525,-923.15,0.0002723,2]
[313836346,1707748303536,-1121.1,0.0002723,2]
[313836347,1707748303546,-500.0,0.0002723,2]
[313836348,1707748303556,-500.0,0.0002723,2]
[313836349,1707748303567,-4100.88,0.0002723,2]
[313836350,1707748303577,-791.85,0.0002723,2]
[313836351,1707748303586,-1394.8,0.0002723,2]
[313836352,1707748303595,-575.24,0.0002723,2]
[313836353,1707748303605,-715.53,0.0002723,2]
[313836354,1707748303615,-637.77,0.0002723,2]
[313836355,1707748303625,-1763.67,0.0002723,2]
[313836356,1707748303634,-2032.84,0.0002723,2]
[313836357,1707748303644,-686.28,0.0002723,2]
[313836358,1707748303654,-689.11,0.0002723,2]
[313836359,1707748303663,-1500.18,0.0002723,2]
[313836360,1707748303672,-4391.98,0.0002723,2]
[313836361,1707748303681,-637.5,0.0002723,2]
[313836362,1707748303690,-1040.77,0.0002723,2]
[313836363,1707748303700,-1065.07,0.0002723,2]
[313836364,1707748303709,-500.0,0.0002723,2]
[313836365,1707748303718,-596.16,0.0002723,2]
[313836366,1707748303727,-706.62,0.0002723,2]
[313836367,1707748303737,-500.0,0.0002723,2]
[313836368,1707748303746,-4062.09,0.0002723,2]
[313836369,1707748303755,-1058.56,0.0002723,2]
[313836370,1707748303764,-721.91,0.0002723,2]
[313836371,1707748303774,-3863.5,0.0002723,2]
[313836372,1707748303784,-559.05,0.0002723,2]
[313836373,1707748303794,-5323.17,0.0002723,2]
[313836374,1707748303803,-1797.81,0.0002723,2]
[313836375,1707748303813,-1838.78,0.0002723,2]
[313836376,1707748303822,-683.21,0.0002723,2]
[313836377,1707748303832,-508.34,0.0002723,2]
[313836378,1707748303842,-945.99,0.0002723,2]
[313836379,1707748303852,-874.97,0.0002723,2]
[313836380,1707748303862,-500.0,0.0002723,2]
[313836381,1707748303870,-2272.98,0.0002723,2]
[313836382,1707748303880,-1286.15,0.0002723,2]
[313836383,1707748303889,-502.26,0.0002723,2]
[313836384,1707748303898,-150.0,0.00027231,2]
[313836385,1707748303907,-639.88,0.00027232,2]
[313836386,1707748303916,-524.07,0.00027232,2]
[313836387,1707748303925,-859.17,0.00027232,2]
[313836388,1707748303935,-8642.09,0.00027232,2]
[313836389,1707748303944,-500.0,0.00027232,2]
[313836390,1707748303954,-907.74,0.00027232,2]
[313836391,1707748303963,-659.8,0.00027232,2]
[313836392,1707748303973,-6204.93,0.00027232,2]
[313836393,1707748303983,-500.0,0.00027232,2]
[313836394,1707748303992,-500.0,0.00027232,2]
[313836395,1707748304002,-1134.83,0.00027232,2]
[313836396,1707748304011,-1147.71,0.00027232,2]
[313836397,1707748304020,-500.0,0.00027232,2]
[313836398,1707748304030,-500.0,0.00027232,2]
[313836399,1707748304040,-2142.38,0.00027232,2]
[313836400,1707748304050,-1578.9,0.00027232,2]
[313836401,1707748304059,-1527.65,0.00027232,2]
[313836402,1707748304070,-628.61,0.00027232,2]
[313836403,1707748304079,-1715.49,0.00027232,2]
[313836404,1707748304088,-1537.51,0.00027232,2]
[313836405,1707748304101,-1757.6,0.00027232,2]
[313836406,1707748304112,-2089.11,0.00027232,2]
[313836407,1707748304122,-1017.68,0.00027232,2]
[313836408,1707748304131,-1161.37,0.00027232,2]
[313836409,1707748304141,-590.03,0.00027232,2]
[313836410,1707748304150,-10286.15,0.00027232,2]
[313836411,1707748304160,-1897.21,0.00027232,2]
[313836412,1707748304170,-935.54,0.00027232,2]
[313836413,1707748304180,-7934.79,0.00027232,2]
[313836414,1707748304190,-2190.55,0.00027232,2]
[313836415,1707748304199,-500.0,0.00027232,2]
[313836416,1707748304209,-1376.25,0.00027232,2]
[313836417,1707748304219,-6405.5,0.00027232,2]
[313836418,1707748304229,-4161.56,0.00027232,2]
[313836419,1707748304239,-692.19,0.00027232,2]
[313836420,1707748304250,-42470.57985931,0.00027297,2]
[313836421,1707748304260,-1262.54,0.00027313,2]
[313836422,1707748304271,-1207.47,0.00027313,2]
[313836423,1707748304280,-581.28,0.00027313,2]
[313836424,1707748304292,-500.0,0.00027313,2]
[313836425,1707748304301,-380.22461973,0.00027313,2]
[313836426,1707748304312,-500.0,0.00027313,2]
[313836427,1707748304324,-500.0,0.00027313,2]
[313836428,1707748304333,-662.95,0.00027313,2]
[313836429,1707748304342,-500.0,0.00027313,2]
[313836430,1707748304352,-500.0,0.00027313,2]
[313836431,1707748304363,-500.0,0.00027313,2]
[313836432,1707748304373,-500.0,0.00027313,2]
[313836433,1707748304382,-785.31,0.00027313,2]
[313836434,1707748304392,-500.0,0.00027313,2]
[313836435,1707748304402,-500.0,0.00027313,2]
[313836436,1707748304411,-1057.6,0.00027313,2]
[313836437,1707748304420,-623.82,0.00027313,2]
[313836438,1707748304430,-681.61,0.00027313,2]
[313836439,1707748304440,-1004.0,0.00027313,2]
[313836440,1707748304451,-67165.1174999,0.00027379,2]
[313836441,1707748304461,-1741.4476511,0.00027379,2]
[313836442,1707748304471,-67804.3423999,0.00027379,2]
[313836443,1707748304481,-2441.9125524,0.00027379,2]
[313836444,1707748304491,-67804.3423999,0.00027379,2]
[313836445,1707748304501,-5805.1184746,0.00027381,2]
[313836446,1707748304511,-11022.7478967,0.00027381,2]
[313836447,1707748304520,-308.72282858,0.0002739,30]
[313836448,1707748304530,-2512.6430618,0.00027395,2]
[313836449,1707748304540,-500.0,0.00027397,2]
[313836450,1707748304550,-500.0,0.00027397,2]
[313836451,1707748304559,-500.0,0.00027397,2]
[313836452,1707748304569,-500.0,0.00027397,2]
[313836453,1707748304578,-500.0,0.00027397,2]
[313836454,1707748304587,-500.0,0.00027397,2]
[313836455,1707748304598,-500.0,0.00027397,2]
[313836456,1707748304608,-500.0,0.00027397,2]
[313836457,1707748304618,-500.0,0.00027397,2]
[313836458,1707748304628,-500.0,0.00027397,2]
[313836459,1707748304637,-500.0,0.00027397,2]
[313836460,1707748304648,-500.0,0.00027397,2]
[313836461,1707748304657,-500.0,0.00027397,2]
[313836462,1707748304667,-500.0,0.00027397,2]
[313836463,1707748304676,-247.3331693,0.00027397,2]
[313836464,1707748304686,-1000.0,0.00027397,7]
[313836465,1707748304696,-1000.0,0.00027397,7]
[313836466,1707748304705,-1000.0,0.00027397,7]
[313836467,1707748304714,-1000.0,0.00027397,7]
[313836468,1707748304723,-1000.0,0.00027397,7]
[313836469,1707748304733,-1000.0,0.00027397,7]
[313836470,1707748304742,-1000.0,0.00027397,7]
[313836471,1707748304751,-1000.0,0.00027397,7]
[313836472,1707748304760,-1000.0,0.00027397,7]
[313836473,1707748304770,-1000.0,0.00027397,7]
[313836474,1707748304779,-1000.0,0.00027397,7]
[313836475,1707748304790,-1046.67967637,0.00027397,7]
[313836476,1707748304799,-300.0,0.00027397,5]
[313836477,1707748304809,-500.0,0.00027397,30]
[313836478,1707748304818,-500.0,0.00027397,30]
[313836479,1707748304826,-500.0,0.00027397,30]
[313836480,1707748304836,-500.0,0.00027397,30]
[313836481,1707748304846,-500.0,0.00027397,30]
[313836482,1707748304855,-500.0,0.00027397,30]
[313836483,1707748304864,-500.0,0.00027397,30]
[313836484,1707748304873,-500.0,0.00027397,30]
[313836485,1707748304883,-516.45502209,0.00027397,30]
[313836486,1707748304892,-1500.0,0.00027397,2]
[313836487,1707748304901,-1500.0,0.00027397,2]
[313836488,1707748304910,-1500.0,0.00027397,2]
[313836489,1707748304919,-1500.0,0.00027397,2]
[313836490,1707748304928,-1500.0,0.00027397,2]
[313836491,1707748304938,-1500.0,0.00027397,2]
[313836492,1707748304948,-1500.0,0.00027397,2]
[313836493,1707748304957,-1500.0,0.00027397,2]
[313836494,1707748304966,-1500.0,0.00027397,2]
[313836495,1707748304975,-1500.0,0.00027397,2]
[313836496,1707748304985,-1500.0,0.00027397,2]
[313836497,1707748304994,-1500.0,0.00027397,2]
[313836498,1707748305003,-1500.0,0.00027397,2]
[313836499,1707748305012,-1500.0,0.00027397,2]
[313836500,1707748305198,-1500.0,0.00027397,2]
[313836501,1707748305209,-1500.0,0.00027397,2]
[313836502,1707748305218,-1500.0,0.00027397,2]
[313836503,1707748305229,-1000.0,0.00027397,7]
[313836504,1707748305238,-1000.0,0.00027397,7]
[313836505,1707748305248,-1000.0,0.00027397,7]
[313836506,1707748305259,-1000.0,0.00027397,7]
[313836507,1707748305269,-1000.0,0.00027397,7]
[313836508,1707748305279,-1000.0,0.00027397,7]
[313836509,1707748305292,-1000.0,0.00027397,7]
[313836510,1707748305301,-1000.0,0.00027397,7]
[313836511,1707748305312,-1000.0,0.00027397,7]
[313836512,1707748305322,-1000.0,0.00027397,7]
[313836513,1707748305331,-1000.0,0.00027397,7]
[313836514,1707748305340,-1000.0,0.00027397,7]
[313836515,1707748305350,-719.72660465,0.00027397,7]
[313836516,1707748305360,-2000.0,0.00027397,30]
[313836517,1707748305370,-2000.0,0.00027397,30]
[313836518,1707748305381,-2000.0,0.00027397,30]
[313836519,1707748305391,-2000.0,0.00027397,30]
[313836520,1707748305401,-2000.0,0.00027397,30]
[313836521,1707748305410,-2000.0,0.00027397,30]
[313836522,1707748305420,-2000.0,0.00027397,30]
[313836523,1707748305430,-1460.24217632,0.00027397,30]
[313836524,1707748305440,-155.0,0.00027397,2]
[313836525,1707748305450,-1000.0,0.00027397,7]
[313836526,1707748305460,-1000.0,0.00027397,7]
[313836527,1707748305470,-1000.0,0.00027397,7]
[313836528,1707748305480,-1000.0,0.00027397,7]
[313836529,1707748305489,-888.28813498,0.00027397,7]
[313836530,1707748305499,-150.0,0.00027397,2]
[313836531,1707748305509,-500.0,0.00027397,14]
[313836532,1707748305518,-500.0,0.00027397,14]
[313836533,1707748305528,-500.0,0.00027397,14]
[313836534,1707748305539,-500.0,0.00027397,14]
[313836535,1707748305549,-500.0,0.00027397,14]
[313836536,1707748305558,-500.0,0.00027397,14]
[313836537,1707748305568,-500.0,0.00027397,14]
[313836538,1707748305578,-500.0,0.00027397,14]
[313836539,1707748305587,-500.0,0.00027397,14]
[313836540,1707748305597,-500.0,0.00027397,14]
[313836541,1707748305606,-500.0,0.00027397,14]
[313836542,1707748305617,-500.0,0.00027397,14]
[313836543,1707748305628,-500.0,0.00027397,14]
[313836544,1707748305637,-500.0,0.00027397,14]
[313836545,1707748305647,-500.0,0.00027397,14]
[313836546,1707748305657,-500.0,0.00027397,14]
[313836547,1707748305666,-500.0,0.00027397,14]
[313836548,1707748305675,-500.0,0.00027397,7]
[313836549,1707748305684,-500.0,0.00027397,7]
[313836550,1707748305693,-500.0,0.00027397,7]
[313836551,1707748305702,-500.0,0.00027397,7]
[313836552,1707748305712,-500.0,0.00027397,7]
[313836553,1707748305722,-500.0,0.00027397,7]
[313836554,1707748305731,-500.0,0.00027397,7]
[313836555,1707748305741,-500.0,0.00027397,7]
[313836556,1707748305750,-500.0,0.00027397,7]
[313836557,1707748305759,-500.0,0.00027397,7]
[313836558,1707748305769,-500.0,0.00027397,7]
[313836559,1707748305778,-500.0,0.00027397,7]
[313836560,1707748305789,-345.00091147,0.00027397,7]
[313836561,1707748305798,-151.0,0.00027397,7]
[313836562,1707748305807,-151.0,0.00027397,7]
[313836563,1707748305816,-151.0,0.00027397,7]
[313836564,1707748305826,-196.41509,0.00027397,7]
[313836565,1707748305835,-151.0,0.00027397,7]
[313836566,1707748305844,-151.0,0.00027397,7]
[313836567,1707748305854,-151.0,0.00027397,7]
[313836568,1707748305863,-282.4870296,0.00027397,7]
[313836569,1707748305873,-130415.0,0.00027397,4]
[313836570,1707748305883,-151.0,0.00027397,7]
[313836571,1707748305893,-151.0,0.00027397,7]
[313836572,1707748305903,-151.0,0.00027397,7]
[313836573,1707748305911,-151.0,0.00027397,7]
[313836574,1707748305921,-151.0,0.00027397,7]
[313836575,1707748305930,-151.0,0.00027397,7]
[313836576,1707748305939,-257.925804,0.00027397,7]
[313836577,1707748305948,-151.0,0.00027397,7]
[313836578,1707748305957,-151.0,0.00027397,7]
[313836579,1707748305967,-151.0,0.00027397,7]
[313836580,1707748305976,-151.0,0.00027397,7]
[313836581,1707748305985,-170.960078,0.00027397,7]
[313836582,1707748305995,-151.0,0.00027397,7]
[313836583,1707748306004,-151.0,0.00027397,7]
[313836584,1707748306013,-151.0,0.00027397,7]
[313836585,1707748306022,-151.0,0.00027397,7]
[313836586,1707748306031,-151.0,0.00027397,7]
[313836587,1707748306042,-151.0,0.00027397,7]
[313836588,1707748306051,-151.0,0.00027397,7]
[313836589,1707748306060,-151.0,0.00027397,7]
[313836590,1707748306069,-151.0,0.00027397,7]
[313836591,1707748306079,-151.0,0.00027397,7]
[313836592,1707748306088,-151.0,0.00027397,7]
[313836593,1707748306097,-151.0,0.00027397,7]
[313836594,1707748306106,-151.0,0.00027397,7]
[313836595,1707748306115,-151.0,0.00027397,7]
[313836596,1707748306124,-151.0,0.00027397,7]
[313836597,1707748306133,-151.0,0.00027397,7]
[313836598,1707748306142,-151.0,0.00027397,7]
[313836599,1707748306153,-151.0,0.00027397,7]
[313836600,1707748306163,-169.570753,0.00027397,7]
[313836601,1707748306174,-151.0,0.00027397,7]
[313836602,1707748306185,-151.0,0.00027397,7]
[313836603,1707748306194,-151.0,0.00027397,7]
[313836604,1707748306203,-151.0,0.00027397,7]
[313836605,1707748306212,-235.66881,0.00027397,7]
[313836606,1707748306222,-151.0,0.00027397,7]
[313836607,1707748306231,-151.0,0.00027397,7]
[313836608,1707748306240,-151.0,0.00027397,7]
[313836609,1707748306249,-151.0,0.00027397,7]
[313836610,1707748306258,-151.0,0.00027397,7]
[313836611,1707748306267,-151.0,0.00027397,7]
[313836612,1707748306276,-151.0,0.00027397,7]
[313836613,1707748306287,-152.806011,0.00027397,7]
[313836614,1707748306296,-151.0,0.00027397,7]
[313836615,1707748306305,-151.0,0.00027397,7]
[313836616,1707748306318,-151.0,0.00027397,7]
[313836617,1707748306327,-151.0,0.00027397,7]
[313836618,1707748306336,-151.0,0.00027397,7]
[313836619,1707748306345,-151.0,0.00027397,7]
[313836620,1707748306355,-151.0,0.00027397,7]
[313836621,1707748306365,-151.0,0.00027397,7]
[313836622,1707748306374,-151.0,0.00027397,7]
[313836623,1707748306384,-151.0,0.00027397,7]
[313836624,1707748306395,-230.469502,0.00027397,7]
[313836625,1707748306406,-402.790761,0.00027397,7]
[313836626,1707748306415,-402.790761,0.00027397,7]
[313836627,1707748306424,-402.790761,0.00027397,7]
[313836628,1707748306433,-402.790761,0.00027397,7]
[313836629,1707748306443,-402.790761,0.00027397,7]
[313836630,1707748306452,-402.790761,0.00027397,7]
[313836631,1707748306461,-402.790761,0.00027397,7]
[313836632,1707748306470,-402.790761,0.00027397,7]
[313836633,1707748306480,-402.790761,0.00027397,7]
[313836634,1707748306490,-402.790761,0.00027397,7]
[313836635,1707748306500,-402.790761,0.00027397,7]
[313836636,1707748306510,-402.790761,0.00027397,7]
[313836637,1707748306520,-402.790761,0.00027397,7]
[313836638,1707748306529,-402.790761,0.00027397,7]
[313836639,1707748306540,-402.790761,0.00027397,7]
[313836640,1707748306550,-402.790761,0.00027397,7]
[313836641,1707748306559,-402.790761,0.00027397,7]
[313836642,1707748306569,-402.790761,0.00027397,7]
[313836643,1707748306579,-402.790761,0.00027397,7]
[313836644,1707748306589,-402.790758,0.00027397,7]
[313836645,1707748306598,-151.0,0.00027397,7]
[313836646,1707748306608,-151.0,0.00027397,7]
[313836647,1707748306617,-151.0,0.00027397,7]
[313836648,1707748306627,-151.0,0.00027397,7]
[313836649,1707748306637,-151.0,0.00027397,7]
[313836650,1707748306646,-151.0,0.00027397,7]
[313836651,1707748306656,-151.0,0.00027397,7]
[313836652,1707748306666,-166.423778,0.00027397,7]
[313836653,1707748306675,-151.0,0.00027397,7]
[313836654,1707748306685,-151.0,0.00027397,7]
[313836655,1707748306695,-151.0,0.00027397,7]
[313836656,1707748306704,-151.0,0.00027397,7]
[313836657,1707748306714,-151.0,0.00027397,7]
[313836658,1707748306724,-151.0,0.00027397,7]
[313836659,1707748306733,-151.0,0.00027397,7]
[313836660,1707748306742,-151.0,0.00027397,7]
[313836661,1707748306752,-151.0,0.00027397,7]
[313836662,1707748306761,-151.0,0.00027397,7]
[313836663,1707748306770,-151.0,0.00027397,7]
[313836664,1707748306779,-151.0,0.00027397,7]
[313836665,1707748306791,-151.0,0.00027397,7]
[313836666,1707748306800,-151.0,0.00027397,7]
[313836667,1707748306810,-151.0,0.00027397,7]
[313836668,1707748306820,-151.0,0.00027397,7]
[313836669,1707748306829,-151.0,0.00027397,7]
[313836670,1707748306838,-151.0,0.00027397,7]
[313836671,1707748306847,-151.0,0.00027397,7]
[313836672,1707748306857,-269.597657,0.00027397,7]
[313836673,1707748306867,-151.0,0.00027397,7]
[313836674,1707748306876,-151.0,0.00027397,7]
[313836675,1707748306886,-151.0,0.00027397,7]
[313836676,1707748306895,-151.0,0.00027397,7]
[313836677,1707748306904,-151.0,0.00027397,7]
[313836678,1707748306913,-215.094196,0.00027397,7]
[313836679,1707748306922,-151.0,0.00027397,7]
[313836680,1707748306931,-151.0,0.00027397,7]
[313836681,1707748306941,-151.0,0.00027397,7]
[313836682,1707748306950,-151.0,0.00027397,7]
[313836683,1707748306959,-151.0,0.00027397,7]
[313836684,1707748306968,-151.0,0.00027397,7]
[313836685,1707748306978,-151.0,0.00027397,7]
[313836686,1707748306986,-151.0,0.00027397,7]
[313836687,1707748306996,-151.0,0.00027397,7]
[313836688,1707748307005,-151.0,0.00027397,7]
[313836689,1707748307015,-151.0,0.00027397,7]
[313836690,1707748307025,-247.657802,0.00027397,7]
[313836691,1707748307035,-165.173469,0.00027397,7]
[313836692,1707748307045,-165.173469,0.00027397,7]
[313836693,1707748307055,-165.173469,0.00027397,7]
[313836694,1707748307064,-165.173469,0.00027397,7]
[313836695,1707748307074,-165.173469,0.00027397,7]
[313836696,1707748307084,-165.173469,0.00027397,7]
[313836697,1707748307094,-165.173469,0.00027397,7]
[313836698,1707748307104,-165.173469,0.00027397,7]
[313836699,1707748307114,-165.173469,0.00027397,7]
[313836700,1707748307124,-165.173469,0.00027397,7]
[313836701,1707748307135,-165.173469,0.00027397,7]
[313836702,1707748307145,-165.173469,0.00027397,7]
[313836703,1707748307156,-165.173469,0.00027397,7]
[313836704,1707748307166,-165.173469,0.00027397,7]
[313836705,1707748307176,-165.173469,0.00027397,7]
[313836706,1707748307186,-165.173469,0.00027397,7]